fUSD/lending_fUSD_20241121
["ID","MTS","AMOUNT","RATE_DAILY","PERIOD"]
[342872914,1732191061800,-500.0,0.00041369,18]
[342872915,1732191061810,-2642.3,0.00041369,18]
[342872916,1732191061819,-500.0,0.00041369,18]
[342872917,1732191061829,-500.0,0.00041369,18]
[342872918,1732191061838,-811.93,0.00041369,18]
[342872919,1732191061851,-500.0,0.00041369,18]
[342872920,1732191061860,-1585.57,0.00041369,18]
[342872921,1732191061870,-500.0,0.00041369,18]
[342872922,1732191061879,-1261.49,0.00041369,18]
[342872923,1732191061889,-875.91,0.00041369,18]
[342872924,1732191061898,-553.57,0.00041369,18]
[342872925,1732191061907,-500.0,0.00041369,18]
[342872926,1732191061916,-934.75,0.00041369,18]
[342872927,1732191061926,-500.0,0.00041369,18]
[342872928,1732191061936,-1326.44,0.00041369,18]
[342872929,1732191061945,-918.0,0.00041369,18]
[342872930,1732191061955,-500.0,0.00041369,18]
[342872931,1732191061964,-1013.06,0.00041369,18]
[342872932,1732191061973,-1786.58,0.00041369,18]
[342872933,1732191061983,-1103.31,0.00041369,18]
[342872934,1732191061992,-506.12,0.00041369,18]
[342872935,1732191062001,-500.0,0.00041369,18]
[342872936,1732191062010,-500.0,0.00041369,18]
[342872937,1732191062019,-598.61,0.00041369,18]
[342872938,1732191062029,-2129.07,0.00041369,18]
[342872939,1732191062038,-500.0,0.00041369,18]
[342872940,1732191062047,-500.0,0.00041369,18]
[342872941,1732191062058,-500.0,0.00041369,18]
[342872942,1732191062067,-500.0,0.00041369,18]
[342872943,1732191062076,-3261.05,0.00041369,18]
[342872944,1732191062086,-500.0,0.00041369,18]
[342872945,1732191062103,-5158.19,0.00041369,18]
[342872946,1732191062112,-1401.17,0.00041369,18]
[342872947,1732191062121,-1352.8,0.00041369,18]
[342872948,1732191062130,-1136.22,0.00041369,18]
[342872949,1732191062139,-593.86,0.00041369,18]
[342872950,1732191062147,-1493.18,0.00041369,18]
[342872951,1732191062156,-567.35,0.00041369,18]
[342872952,1732191062165,-500.0,0.00041369,18]
[342872953,1732191062174,-500.0,0.00041369,18]
[342872954,1732191062182,-575.96071261,0.00041369,18]
[342872955,1732191062193,-500.0,0.00041369,18]
[342872956,1732191062203,-500.0,0.00041369,18]
[342872957,1732191062212,-1351.96,0.00041369,18]
[342872958,1732191062221,-502.23644047,0.00041369,18]
[342872959,1732191062230,-1147.31,0.00041369,18]
[342872960,1732191062239,-500.0,0.00041369,18]
[342872961,1732191062248,-500.0,0.00041369,18]
[342872962,1732191062257,-500.0,0.00041369,18]
[342872963,1732191062267,-500.0,0.00041369,18]
[342872964,1732191062281,-500.0,0.00041369,18]
[342872965,1732191062291,-773.85,0.00041369,18]
[342872966,1732191062300,-1199.73,0.00041369,18]
[342872967,1732191062310,-500.0,0.00041369,18]
[342872968,1732191062320,-507.17639555,0.00041369,18]
[342872969,1732191062329,-2351.77,0.00041369,18]
[342872970,1732191062339,-500.0,0.00041369,18]
[342872971,1732191062351,-1793.0,0.00041369,18]
[342872972,1732191062359,-858.69,0.00041369,18]
[342872973,1732191062369,-545.3,0.00041369,18]
[342872974,1732191062378,-1052.15,0.00041369,18]
[342872975,1732191062387,-798.38,0.00041369,18]
[342872976,1732191062396,-500.0,0.00041369,18]
[342872977,1732191062405,-500.0,0.00041369,18]
[342872978,1732191062414,-553.4,0.00041369,18]
[342872979,1732191062424,-657.68,0.00041369,18]
[342872980,1732191062433,-500.0,0.00041369,18]
[342872981,1732191062443,-2885.1,0.00041369,18]
[342872982,1732191062452,-1089.06,0.00041369,18]
[342872983,1732191062461,-1049.96,0.00041369,18]
[342872984,1732191062470,-919.52,0.00041369,18]
[342872985,1732191062480,-681.87,0.00041369,18]
[342872986,1732191062489,-617.73,0.00041369,18]
[342872987,1732191062498,-500.0,0.00041369,18]
[342872988,1732191062507,-2805.64,0.00041369,18]
[342872989,1732191062518,-1232.85,0.00041369,18]
[342872990,1732191062527,-500.0,0.00041369,18]
[342872991,1732191062537,-500.0,0.00041369,18]
[342872992,1732191062546,-3409.36,0.00041369,18]
[342872993,1732191062556,-627.86,0.00041369,18]
[342872994,1732191062566,-1585.7,0.00041369,18]
[342872995,1732191062575,-1005.04,0.00041369,18]
[342872996,1732191062585,-500.0,0.00041369,18]
[342872997,1732191062597,-7862.91,0.00041369,18]
[342872998,1732191062606,-500.0,0.00041369,18]
[342872999,1732191062615,-542.65,0.00041369,18]
[342873000,1732191062624,-1771.73,0.00041369,18]
[342873001,1732191062634,-500.0,0.00041369,18]
[342873002,1732191062644,-4270.9,0.00041369,18]
[342873003,1732191062654,-500.0,0.00041369,18]
[342873004,1732191062664,-1246.17,0.00041369,18]
[342873005,1732191062674,-1493.62,0.00041369,18]
[342873006,1732191062684,-1470.35,0.00041369,18]
[342873007,1732191062694,-884.87,0.00041369,18]
[342873008,1732191062703,-858.23,0.00041369,18]
[342873009,1732191062713,-658.39,0.00041369,18]
[342873010,1732191062722,-2000.0,0.00041369,30]
[342873011,1732191062732,-500.0,0.00041369,18]
[342873012,1732191062742,-500.0,0.00041369,18]
[342873013,1732191062753,-1081.78,0.00041369,18]
[342873014,1732191062764,-500.0,0.00041369,18]
[342873015,1732191062775,-500.0,0.00041369,18]
[342873016,1732191062785,-500.0,0.00041369,18]
[342873017,1732191062796,-1274.32,0.00041369,18]
[342873018,1732191062806,-552.35,0.00041369,18]
[342873019,1732191062818,-500.0,0.00041369,18]
[342873020,1732191062829,-500.0,0.00041369,18]
[342873021,1732191062842,-151.0,0.00041369,14]
[342873022,1732191062855,-500.0,0.00041369,18]
[342873023,1732191062866,-500.0,0.00041369,18]
[342873024,1732191062876,-1089.06,0.00041369,18]
[342873025,1732191062885,-500.0,0.00041369,18]
[342873026,1732191062894,-1466.43,0.00041369,18]
[342873027,1732191062904,-500.0,0.00041369,18]
[342873028,1732191062913,-500.0,0.00041369,18]
[342873029,1732191062923,-3365.8,0.00041369,18]
[342873030,1732191062933,-637.7771121,0.00041369,18]
[342873031,1732191062942,-500.0,0.00041369,18]
[342873032,1732191062952,-3585.25,0.00041369,18]
[342873033,1732191062962,-858.17,0.00041369,18]
[342873034,1732191062972,-500.0,0.00041369,18]
[342873035,1732191062981,-1748.97,0.00041369,18]
[342873036,1732191062990,-500.0,0.00041369,18]
[342873037,1732191062999,-1564.38,0.00041369,18]
[342873038,1732191063009,-500.0,0.00041369,18]
[342873039,1732191063018,-500.0,0.00041369,18]
[342873040,1732191063028,-657.23,0.00041369,18]
[342873041,1732191063037,-1071.71,0.00041369,18]
[342873042,1732191063047,-1890.95,0.00041369,18]
[342873043,1732191063057,-500.0,0.00041369,18]
[342873044,1732191063066,-896.89,0.00041369,18]
[342873045,1732191063076,-500.0,0.00041369,18]
[342873046,1732191063086,-1500.0,0.00041369,120]
[342873047,1732191063096,-565.65,0.00041369,18]
[342873048,1732191063106,-1353.47,0.00041369,18]
[342873049,1732191063115,-500.0,0.00041369,18]
[342873050,1732191063126,-764.9,0.00041369,18]
[342873051,1732191063137,-1702.36,0.00041369,18]
[342873052,1732191063147,-1897.51,0.00041369,18]
[342873053,1732191063157,-1131.28,0.00041369,18]
[342873054,1732191063168,-358.76281368,0.00041369,18]
[342873055,1732191063179,-500.0,0.00041369,18]
[342873056,1732191063189,-3234.69,0.00041369,18]
[342873057,1732191063201,-500.0,0.00041369,18]
[342873058,1732191063211,-500.0,0.00041369,18]
[342873059,1732191063221,-1141.75,0.00041369,18]
[342873060,1732191063231,-500.0,0.00041369,18]
[342873061,1732191063246,-1881.36,0.00041369,18]
[342873062,1732191063256,-500.0,0.00041369,18]
[342873063,1732191063266,-500.0,0.00041369,18]
[342873064,1732191063285,-701.88,0.00041369,18]
[342873065,1732191063297,-1786.22,0.00041369,18]
[342873066,1732191063311,-917.21,0.00041369,18]
[342873067,1732191063322,-522.5,0.00041369,18]
[342873068,1732191063332,-5276.31,0.00041369,18]
[342873069,1732191063341,-667.39,0.00041369,18]
[342873070,1732191063369,-695.5,0.00041369,18]
[342873071,1732191063380,-1083.07,0.00041369,18]
[342873072,1732191063391,-947.55,0.00041369,18]
[342873073,1732191063401,-500.0,0.00041369,18]
[342873074,1732191063411,-1153.93,0.00041369,18]
[342873075,1732191063421,-1128.35,0.00041369,18]
[342873076,1732191063430,-500.0,0.00041369,18]
[342873077,1732191063440,-5493.63,0.00041369,18]
[342873078,1732191063451,-500.0,0.00041369,18]
[342873079,1732191063461,-531.95,0.00041369,18]
[342873080,1732191063470,-500.0,0.00041369,18]
[342873081,1732191063480,-1181.43,0.00041369,18]
[342873082,1732191063489,-28642.13,0.00041369,18]
[342873083,1732191063499,-1117.88,0.00041369,18]
[342873084,1732191063509,-1859.5,0.00041369,18]
[342873085,1732191063518,-345.75951033,0.00041369,18]
[342873086,1732191063528,-1554.92,0.00041369,18]
[342873087,1732191063538,-500.0,0.00041369,18]
[342873088,1732191063548,-772.67,0.00041369,18]
[342873089,1732191063558,-500.0,0.00041369,18]
[342873090,1732191063567,-1091.78,0.00041369,18]
[342873091,1732191063577,-4438.03,0.00041369,18]
[342873092,1732191063587,-500.0,0.00041369,18]
[342873093,1732191063600,-3310.48,0.00041369,18]
[342873094,1732191063610,-1442.82,0.00041369,18]
[342873095,1732191063621,-1211.34,0.00041369,18]
[342873096,1732191063630,-780.76,0.00041369,18]
[342873097,1732191063641,-500.0,0.00041369,18]
[342873098,1732191063651,-500.0,0.00041369,18]
[342873099,1732191063660,-500.0,0.00041369,18]
[342873100,1732191063670,-500.0,0.00041369,18]
[342873101,1732191063680,-500.0,0.00041369,18]
[342873102,1732191063689,-500.0,0.00041369,18]
[342873103,1732191063699,-2703.44,0.00041369,18]
[342873104,1732191063709,-1087.66,0.00041369,18]
[342873105,1732191063719,-500.0,0.00041369,18]
[342873106,1732191063729,-677.74,0.00041369,18]
[342873107,1732191063739,-500.0,0.00041369,18]
[342873108,1732191063750,-500.0,0.00041369,18]
[342873109,1732191063761,-500.0,0.00041369,18]
[342873110,1732191063771,-500.0,0.00041369,18]
[342873111,1732191063782,-500.0,0.00041369,18]
[342873112,1732191063793,-1473.9,0.00041369,18]
[342873113,1732191063803,-500.0,0.00041369,18]
[342873114,1732191063814,-500.0,0.00041369,18]
[342873115,1732191063824,-1559.25,0.00041369,18]
[342873116,1732191063835,-784.71,0.00041369,18]
[342873117,1732191063847,-3822.14,0.00041369,18]
[342873118,1732191063857,-290.45246223,0.00041369,18]
[342873119,1732191063868,-500.0,0.00041369,18]
[342873120,1732191063877,-863.55,0.00041369,18]
[342873121,1732191063888,-500.0,0.00041369,18]
[342873122,1732191063898,-2128.78,0.00041369,18]
[342873123,1732191063908,-2107.31,0.00041369,18]
[342873124,1732191063917,-500.0,0.00041369,18]
[342873125,1732191063927,-1350.13,0.00041369,18]
[342873126,1732191063937,-1838.09,0.00041369,18]
[342873127,1732191063946,-500.0,0.00041369,18]
[342873128,1732191063956,-500.0,0.00041369,18]
[342873129,1732191063966,-476.44787241,0.00041369,18]
[342873130,1732191063976,-500.0,0.00041369,18]
[342873131,1732191063986,-3867.41,0.00041369,18]
[342873132,1732191063996,-500.0,0.00041369,18]
[342873133,1732191064006,-500.0,0.00041369,18]
[342873134,1732191064016,-2697.41,0.00041369,18]
[342873135,1732191064025,-500.0,0.00041369,18]
[342873136,1732191064035,-500.0,0.00041369,18]
[342873137,1732191064045,-3295.78,0.00041369,18]
[342873138,1732191064055,-718.71,0.00041369,18]
[342873139,1732191064064,-500.0,0.00041369,18]
[342873140,1732191064074,-2926.81,0.00041369,18]
[342873141,1732191064083,-500.0,0.00041369,18]
[342873142,1732191064093,-577.22,0.00041369,18]
[342873143,1732191064106,-500.0,0.00041369,18]
[342873144,1732191064118,-1064.06,0.00041369,18]
[342873145,1732191064127,-1197.49,0.00041369,18]
[342873146,1732191064137,-419.11358942,0.00041369,18]
[342873147,1732191064146,-1009.74,0.00041369,18]
[342873148,1732191064156,-4330.34,0.00041369,18]
[342873149,1732191064165,-1471.96,0.00041369,18]
[342873150,1732191064175,-6560.59,0.00041369,18]
[342873151,1732191064184,-3927.28,0.00041369,18]
[342873152,1732191064193,-500.0,0.00041369,18]
[342873153,1732191064202,-1771.65,0.00041369,18]
[342873154,1732191064212,-2694.07,0.00041369,18]
[342873155,1732191064222,-1012.14,0.00041369,18]
[342873156,1732191064231,-500.0,0.00041369,18]
[342873157,1732191064241,-712.49,0.00041369,18]
[342873158,1732191064251,-505.93,0.00041369,18]
[342873159,1732191064261,-500.0,0.00041369,18]
[342873160,1732191064271,-500.0,0.00041369,18]
[342873161,1732191064284,-1933.02,0.00041369,18]
[342873162,1732191064293,-684.26,0.00041369,18]
[342873163,1732191064302,-890.59,0.00041369,18]
[342873164,1732191064312,-1383.85,0.00041369,18]
[342873165,1732191064322,-500.0,0.00041369,18]
[342873166,1732191064332,-500.0,0.00041369,18]
[342873167,1732191064342,-546.92,0.00041369,18]
[342873168,1732191064355,-548.79,0.00041369,18]
[342873169,1732191064365,-500.0,0.00041369,18]
[342873170,1732191064374,-9944.36,0.00041369,18]
[342873171,1732191064384,-1092.83,0.00041369,18]
[342873172,1732191064394,-3022.52,0.00041369,18]
[342873173,1732191064403,-628.62,0.00041369,18]
[342873174,1732191064412,-9812.49,0.00041369,18]
[342873175,1732191064421,-625.87,0.00041369,18]
[342873176,1732191064430,-500.0,0.00041369,18]
[342873177,1732191064440,-500.0,0.00041369,18]
[342873178,1732191064450,-2889.87,0.00041369,18]
[342873179,1732191064460,-876.62,0.00041369,18]
[342873180,1732191064470,-500.0,0.00041369,18]
[342873181,1732191064480,-500.0,0.00041369,18]
[342873182,1732191064490,-500.0,0.00041369,18]
[342873183,1732191064499,-638.97,0.00041369,18]
[342873184,1732191064509,-3758.42,0.00041369,18]
[342873185,1732191064518,-713.38,0.00041369,18]
[342873186,1732191064528,-500.0,0.00041369,18]
[342873187,1732191064537,-2111.22,0.00041369,18]
[342873188,1732191064547,-1054.34,0.00041369,18]
[342873189,1732191064557,-1023.72,0.00041369,7]
[342873190,1732191064566,-500.0,0.00041369,18]
[342873191,1732191064576,-616.03,0.00041369,18]
[342873192,1732191064586,-500.0,0.00041369,18]
[342873193,1732191064598,-500.0,0.00041369,18]
[342873194,1732191064608,-856.02,0.00041369,18]
[342873195,1732191064617,-500.0,0.00041369,18]
[342873196,1732191064627,-11002.05,0.00041369,18]
[342873197,1732191064637,-1492.62,0.00041369,18]
[342873198,1732191064648,-4076.9,0.00041369,18]
[342873199,1732191064658,-731.6,0.00041369,18]
[342873200,1732191064668,-503.13,0.00041369,18]
[342873201,1732191064677,-1000.0,0.00041369,5]
[342873202,1732191064687,-1216.73,0.00041369,18]
[342873203,1732191064697,-500.0,0.00041369,18]
[342873204,1732191064706,-5320.84,0.00041369,18]
[342873205,1732191064716,-500.0,0.00041369,18]
[342873206,1732191064726,-568.54,0.00041369,18]
[342873207,1732191064735,-12057.03,0.00041369,18]
[342873208,1732191064745,-500.0,0.00041369,18]
[342873209,1732191064755,-933.93,0.00041369,18]
[342873210,1732191064766,-545.26,0.00041369,18]
[342873211,1732191064777,-2278.97,0.00041369,18]
[342873212,1732191064787,-535.06,0.00041369,18]
[342873213,1732191064797,-789.08,0.00041369,18]
[342873214,1732191064807,-500.0,0.00041369,2]
[342873215,1732191064819,-1241.7,0.00041369,18]
[342873216,1732191064831,-500.0,0.00041369,18]
[342873217,1732191064842,-500.0,0.00041369,18]
[342873218,1732191064855,-516.52,0.00041369,18]
[342873219,1732191064868,-7669.61,0.00041369,18]
[342873220,1732191064878,-2437.26,0.00041369,18]
[342873221,1732191064889,-500.96,0.00041369,18]
[342873222,1732191064898,-500.0,0.00041369,18]
[342873223,1732191064907,-200.61206984,0.00041397,28]
[342873224,1732191064916,-150.0,0.000414,2]
[342873225,1732191064926,-860.48987024,0.00041469,15]
[342873226,1732191064935,-526.52958,0.00041488,30]
[342873227,1732191064944,-1130.0802673,0.00041543,2]
[342873228,1732191064955,-180.91644052,0.00041543,2]
[342873229,1732191064964,-168.9,0.00041571,2]
[342873230,1732191064974,-500.0,0.00041586,120]
[342873231,1732191064984,-2000.0,0.00041611,120]
[342873232,1732191064993,-509.34,0.00041643,18]
[342873233,1732191065003,-1285.07,0.00041643,18]
[342873234,1732191065013,-500.0,0.00041643,18]
[342873235,1732191065022,-1130.02,0.00041643,18]
[342873236,1732191065031,-1092.56,0.00041643,18]
[342873237,1732191065041,-500.0,0.00041643,18]
[342873238,1732191065050,-500.0,0.00041643,18]
[342873239,1732191065059,-500.0,0.00041643,18]
[342873240,1732191065069,-500.0,0.00041643,18]
[342873241,1732191065080,-500.0,0.00041643,18]
[342873242,1732191065089,-832.13,0.00041643,18]
[342873243,1732191065102,-500.0,0.00041643,18]
[342873244,1732191065111,-500.0,0.00041643,18]
[342873245,1732191065121,-1272.94,0.00041643,18]
[342873246,1732191065130,-500.0,0.00041643,18]
[342873247,1732191065140,-500.0,0.00041643,18]
[342873248,1732191065149,-1429.49,0.00041643,18]
[342873249,1732191065159,-500.0,0.00041643,18]
[342873250,1732191065168,-629.79,0.00041643,18]
[342873251,1732191065177,-500.0,0.00041643,18]
[342873252,1732191065186,-500.0,0.00041643,18]
[342873253,1732191065196,-500.0,0.00041643,18]
[342873254,1732191065207,-500.0,0.00041643,18]
[342873255,1732191065216,-510.69,0.00041643,18]
[342873256,1732191065226,-500.0,0.00041643,18]
[342873257,1732191065235,-500.0,0.00041643,18]
[342873258,1732191065245,-500.0,0.00041643,18]
[342873259,1732191065254,-500.0,0.00041643,18]
[342873260,1732191065264,-500.0,0.00041643,18]
[342873261,1732191065274,-500.0,0.00041643,18]
[342873262,1732191065283,-521.31138831,0.00041643,18]
[342873263,1732191065292,-500.0,0.00041643,18]
[342873264,1732191065303,-500.0,0.00041643,18]
[342873265,1732191065312,-705.11,0.00041643,18]
[342873266,1732191065322,-500.0,0.00041643,18]
[342873267,1732191065330,-500.0,0.00041643,18]
[342873268,1732191065339,-500.0,0.00041643,18]
[342873269,1732191065351,-224.156427,0.00041643,18]
[342873270,1732191065362,-1344.138509,0.00041643,18]
[342873271,1732191065372,-539.58,0.00041643,18]
[342873272,1732191065382,-500.0,0.00041643,18]
[342873273,1732191065392,-581.44302964,0.00041643,18]
[342873274,1732191065402,-268.84900833,0.00041643,18]
[342873275,1732191065411,-777.22,0.00041643,18]
[342873276,1732191065421,-500.0,0.00041643,18]
[342873277,1732191065430,-500.0,0.00041643,18]
[342873278,1732191065440,-500.0,0.00041643,18]
[342873279,1732191065449,-500.0,0.00041643,18]
[342873280,1732191065460,-500.0,0.00041643,18]
[342873281,1732191065469,-500.0,0.00041643,18]
[342873282,1732191065479,-519.67,0.00041643,18]
[342873283,1732191065488,-500.0,0.00041643,18]
[342873284,1732191065497,-1026.26,0.00041643,18]
[342873285,1732191065507,-500.0,0.00041643,18]
[342873286,1732191065516,-500.0,0.00041643,18]
[342873287,1732191065525,-500.0,0.00041643,18]
[342873288,1732191065535,-500.0,0.00041643,18]
[342873289,1732191065545,-500.0,0.00041643,18]
[342873290,1732191065554,-1295.59,0.00041643,18]
[342873291,1732191065564,-500.0,0.00041643,18]
[342873292,1732191065573,-1219.81,0.00041643,18]
[342873293,1732191065582,-500.0,0.00041643,18]
[342873294,1732191065592,-500.0,0.00041643,18]
[342873295,1732191065604,-247.29718106,0.00041643,18]
[342873296,1732191065615,-862.96,0.00041643,18]
[342873297,1732191065625,-500.0,0.00041643,18]
[342873298,1732191065635,-869.69,0.00041643,18]
[342873299,1732191065645,-935.36,0.00041643,18]
[342873300,1732191065656,-223.17580703,0.00041643,18]
[342873301,1732191065666,-500.0,0.00041643,18]
[342873302,1732191065678,-4008.38428705,0.00041643,18]
[342873303,1732191065688,-500.0,0.00041643,18]
[342873304,1732191065698,-500.0,0.00041643,18]
[342873305,1732191065708,-500.0,0.00041643,18]
[342873306,1732191065718,-500.0,0.00041643,18]
[342873307,1732191065729,-500.0,0.00041643,18]
[342873308,1732191065739,-500.0,0.00041643,18]
[342873309,1732191065749,-500.0,0.00041643,18]
[342873310,1732191065760,-500.0,0.00041643,18]
[342873311,1732191065914,-836.32,0.00041643,18]
[342873312,1732191065923,-500.0,0.00041643,18]
[342873313,1732191065934,-500.0,0.00041643,18]
[342873314,1732191065944,-500.0,0.00041643,18]
[342873315,1732191065954,-500.0,0.00041643,18]
[342873316,1732191065964,-500.0,0.00041643,18]
[342873317,1732191065974,-500.0,0.00041643,18]
[342873318,1732191065984,-1005.03,0.00041643,18]
[342873319,1732191065995,-879.18,0.00041643,18]
[342873320,1732191066004,-500.0,0.00041643,18]
[342873321,1732191066014,-500.0,0.00041643,18]
[342873322,1732191066024,-500.0,0.00041643,18]
[342873323,1732191066033,-500.0,0.00041643,18]
[342873324,1732191066043,-2246.8,0.00041643,18]
[342873325,1732191066053,-500.0,0.00041643,18]
[342873326,1732191066063,-711.84,0.00041643,18]
[342873327,1732191066073,-955.79,0.00041643,18]
[342873328,1732191066083,-1538.51,0.00041643,18]
[342873329,1732191066093,-500.0,0.00041643,18]
[342873330,1732191066106,-1722.25,0.00041643,18]
[342873331,1732191066117,-500.0,0.00041643,18]
[342873332,1732191066126,-500.0,0.00041643,18]
[342873333,1732191066136,-500.0,0.00041643,18]
[342873334,1732191066147,-587.6,0.00041643,18]
[342873335,1732191066156,-500.0,0.00041643,18]
[342873336,1732191066167,-500.0,0.00041643,18]
[342873337,1732191066178,-500.0,0.00041643,18]
[342873338,1732191066188,-771.25,0.00041643,18]
[342873339,1732191066198,-858.83,0.00041643,18]
[342873340,1732191066207,-500.0,0.00041643,18]
[342873341,1732191066217,-500.0,0.00041643,18]
[342873342,1732191066227,-1220.6,0.00041643,7]
[342873343,1732191066236,-500.0,0.00041643,18]
[342873344,1732191066246,-500.0,0.00041643,18]
[342873345,1732191066255,-500.0,0.00041643,18]
[342873346,1732191066265,-562.03,0.00041643,18]
[342873347,1732191066276,-1023.62,0.00041643,18]
[342873348,1732191066288,-840.69,0.00041643,18]
[342873349,1732191066297,-1112.29,0.00041643,18]
[342873350,1732191066307,-500.0,0.00041643,18]
[342873351,1732191066318,-500.0,0.00041643,18]
[342873352,1732191066328,-1027.77,0.00041643,18]
[342873353,1732191066337,-1029.65,0.00041643,18]
[342873354,1732191066348,-500.0,0.00041643,18]
[342873355,1732191066359,-500.0,0.00041643,18]
[342873356,1732191066368,-542.49,0.00041643,18]
[342873357,1732191066378,-1306.56,0.00041643,18]
[342873358,1732191066389,-805.03,0.00041643,18]
[342873359,1732191066399,-523.85,0.00041643,18]
[342873360,1732191066408,-500.0,0.00041643,18]
[342873361,1732191066418,-3785.91,0.00041643,18]
[342873362,1732191066428,-500.0,0.00041643,18]
[342873363,1732191066438,-561.82,0.00041643,18]
[342873364,1732191066448,-1136.86,0.00041643,18]
[342873365,1732191066458,-706.3,0.00041643,18]
[342873366,1732191066468,-500.0,0.00041643,18]
[342873367,1732191066478,-3408.59,0.00041643,18]
[342873368,1732191066487,-500.0,0.00041643,18]
[342873369,1732191066497,-500.0,0.00041643,18]
[342873370,1732191066507,-699.66,0.00041643,18]
[342873371,1732191066517,-554.9,0.00041643,18]
[342873372,1732191066526,-500.0,0.00041643,18]
[342873373,1732191066536,-500.0,0.00041643,18]
[342873374,1732191066546,-500.0,0.00041643,18]
[342873375,1732191066556,-500.0,0.00041643,18]
[342873376,1732191066566,-533.33,0.00041643,18]
[342873377,1732191066575,-500.0,0.00041643,18]
[342873378,1732191066586,-1028.47,0.00041643,18]
[342873379,1732191066598,-500.0,0.00041643,18]
[342873380,1732191066608,-500.0,0.00041643,18]
[342873381,1732191066618,-500.0,0.00041643,18]
[342873382,1732191066627,-500.0,0.00041643,18]
[342873383,1732191066637,-500.0,0.00041643,18]
[342873384,1732191066647,-500.0,0.00041643,18]
[342873385,1732191066657,-500.0,0.00041643,18]
[342873386,1732191066667,-500.0,0.00041643,18]
[342873387,1732191066677,-518.67,0.00041643,18]
[342873388,1732191066686,-180.87606327,0.00041643,18]
[342873389,1732191066696,-500.0,0.00041643,18]
[342873390,1732191066706,-500.0,0.00041643,18]
[342873391,1732191066715,-500.0,0.00041643,18]
[342873392,1732191066725,-500.0,0.00041643,18]
[342873393,1732191066735,-2749.03,0.00041643,18]
[342873394,1732191066745,-500.0,0.00041643,18]
[342873395,1732191066755,-500.0,0.00041643,18]
[342873396,1732191066765,-1977.7,0.00041643,18]
[342873397,1732191066775,-1278.24,0.00041643,18]
[342873398,1732191066785,-500.0,0.00041643,18]
[342873399,1732191066794,-2211.45,0.00041643,18]
[342873400,1732191066805,-500.0,0.00041643,18]
[342873401,1732191066815,-500.0,0.00041643,18]
[342873402,1732191066825,-919.94,0.00041643,18]
[342873403,1732191066835,-500.0,0.00041643,18]
[342873404,1732191066844,-2368.04,0.00041643,18]
[342873405,1732191066857,-500.0,0.00041643,18]
[342873406,1732191066867,-544.48,0.00041643,18]
[342873407,1732191066877,-500.0,0.00041643,18]
[342873408,1732191066886,-540.51,0.00041643,18]
[342873409,1732191066895,-500.0,0.00041643,18]
[342873410,1732191066905,-578.9,0.00041643,18]
[342873411,1732191066914,-533.63,0.00041643,18]
[342873412,1732191066924,-500.0,0.00041643,18]
[342873413,1732191066934,-500.0,0.00041643,18]